lending/lending_fUSD_20250819
["ID","MTS","AMOUNT","RATE_DAILY","PERIOD"]
[380164433,1755589626980,-3217.53,0.00030136,120]
[380164434,1755589627013,-400.0,0.00030136,120]
[380164435,1755589627047,-400.0,0.00030136,120]
[380164436,1755589627081,-962.85,0.00030136,120]
[380164437,1755589627115,-444.62,0.00030136,120]
[380164438,1755589627149,-2004.65,0.00030136,120]
[380164439,1755589627184,-1404.3,0.00030136,120]
[380164440,1755589627218,-403.63374898,0.00030136,120]
[380164441,1755589627251,-762.85,0.00030136,120]
[380164442,1755589627284,-400.0,0.00030136,120]
[380164443,1755589627317,-584.3,0.00030136,120]
[380164444,1755589627351,-1414.77,0.00030136,120]
[380164445,1755589627384,-400.0,0.00030136,120]
[380164446,1755589627418,-400.0,0.00030136,120]
[380164447,1755589627451,-405.9,0.00030136,120]
[380164448,1755589627488,-910.21,0.00030136,120]
[380164449,1755589627521,-400.0,0.00030136,120]
[380164450,1755589627555,-400.0,0.00030136,120]
[380164451,1755589627589,-400.0,0.00030136,120]
[380164452,1755589627623,-400.0,0.00030136,120]
[380164453,1755589627656,-2269.66,0.00030136,120]
[380164454,1755589627689,-486.05,0.00030136,120]
[380164455,1755589627723,-430.17,0.00030136,120]
[380164456,1755589627756,-400.0,0.00030136,120]
[380164457,1755589627789,-821.2,0.00030136,120]
[380164458,1755589627822,-773.21,0.00030136,120]
[380164459,1755589627855,-400.0,0.00030136,120]
[380164460,1755589627888,-400.0,0.00030136,120]
[380164461,1755589627921,-1138.52,0.00030136,120]
[380164462,1755589627953,-400.0,0.00030136,120]
[380164463,1755589627985,-2582.3,0.00030136,120]
[380164464,1755589628018,-400.0,0.00030136,120]
[380164465,1755589628050,-1099.47,0.00030136,120]
[380164466,1755589628082,-824.39,0.00030136,120]
[380164467,1755589628115,-403.47,0.00030136,120]
[380164468,1755589628148,-400.0,0.00030136,120]
[380164469,1755589628183,-400.0,0.00030136,120]
[380164470,1755589628219,-543.9,0.00030136,120]
[380164471,1755589628252,-400.0,0.00030136,120]
[380164472,1755589628287,-400.0,0.00030136,120]
[380164473,1755589628320,-2687.29,0.00030136,120]
[380164474,1755589628355,-400.0,0.00030136,120]
[380164475,1755589628390,-400.0,0.00030136,120]
[380164476,1755589628423,-400.0,0.00030136,120]
[380164477,1755589628458,-2310.62,0.00030136,120]
[380164478,1755589628491,-1356.35,0.00030136,120]
[380164479,1755589628523,-400.0,0.00030136,120]
[380164480,1755589628556,-400.0,0.00030136,120]
[380164481,1755589628590,-2096.5,0.00030136,120]
[380164482,1755589628623,-400.0,0.00030136,120]
[380164483,1755589628658,-400.0,0.00030136,120]
[380164484,1755589628694,-400.0,0.00030136,120]
[380164485,1755589628727,-882.84,0.00030136,120]
[380164486,1755589628759,-580.52,0.00030136,120]
[380164487,1755589628791,-1002.22,0.00030136,120]
[380164488,1755589628825,-400.0,0.00030136,120]
[380164489,1755589628860,-400.0,0.00030136,120]
[380164490,1755589628894,-923.8,0.00030136,120]
[380164491,1755589628927,-400.0,0.00030136,120]
[380164492,1755589628959,-466.17,0.00030136,120]
[380164493,1755589628992,-1294.29,0.00030136,120]
[380164494,1755589629024,-400.0,0.00030136,120]
[380164495,1755589629057,-400.0,0.00030136,120]
[380164496,1755589629381,-400.0,0.00030136,120]
[380164497,1755589629414,-1181.92,0.00030136,120]
[380164498,1755589629448,-3148.19,0.00030136,120]
[380164499,1755589629482,-2632.73,0.00030136,120]
[380164500,1755589629515,-400.0,0.00030136,120]
[380164501,1755589629546,-400.0,0.00030136,120]
[380164502,1755589629580,-679.49,0.00030136,120]
[380164503,1755589629615,-400.0,0.00030136,120]
[380164504,1755589629648,-1207.83,0.00030136,120]
[380164505,1755589629681,-400.0,0.00030136,120]
[380164506,1755589629713,-400.0,0.00030136,120]
[380164507,1755589629746,-770.92,0.00030136,120]
[380164508,1755589629778,-400.0,0.00030136,120]
[380164509,1755589629811,-400.0,0.00030136,120]
[380164510,1755589629843,-2105.28,0.00030136,120]
[380164511,1755589629875,-764.78,0.00030136,120]
[380164512,1755589629907,-463.03,0.00030136,120]
[380164513,1755589629940,-1864.15,0.00030136,120]
[380164514,1755589629972,-447.35,0.00030136,120]
[380164515,1755589630004,-400.0,0.00030136,120]
[380164516,1755589630034,-662.97,0.00030136,120]
[380164517,1755589630065,-1030.03,0.00030136,120]
[380164518,1755589630096,-2038.08,0.00030136,120]
[380164519,1755589630132,-400.0,0.00030136,120]
[380164520,1755589630161,-1542.67,0.00030136,120]
[380164521,1755589630194,-830.13,0.00030136,120]
[380164522,1755589630225,-400.0,0.00030136,120]
[380164523,1755589630254,-850.0,0.00030136,120]
[380164524,1755589630285,-400.0,0.00030136,120]
[380164525,1755589630319,-523.54,0.00030136,120]
[380164526,1755589630352,-1795.55,0.00030136,120]
[380164527,1755589630384,-1353.5,0.00030136,120]
[380164528,1755589630416,-400.0,0.00030136,120]
[380164529,1755589630463,-1353.5,0.00030136,120]
[380164530,1755589630499,-1353.5,0.00030136,120]
[380164531,1755589630532,-1353.5,0.00030136,120]
[380164532,1755589630566,-1353.5,0.00030136,120]
[380164533,1755589630599,-1110.35,0.00030136,120]
[380164534,1755589630636,-1353.5,0.00030136,120]
[380164535,1755589630672,-1353.5,0.00030136,120]
[380164536,1755589630706,-1353.5,0.00030136,120]
[380164537,1755589630741,-1353.5,0.00030136,120]
[380164538,1755589630778,-1353.5,0.00030136,120]
[380164539,1755589630812,-1353.5,0.00030136,120]
[380164540,1755589630847,-1353.5,0.00030136,120]
[380164541,1755589630880,-400.49038876,0.00030136,120]
[380164542,1755589630913,-1353.5,0.00030136,120]
[380164543,1755589630945,-1353.5,0.00030136,120]
[380164544,1755589630977,-1353.5,0.00030136,120]
[380164545,1755589631010,-1353.5,0.00030136,120]
[380164546,1755589631043,-1353.5,0.00030136,120]
[380164547,1755589631077,-1353.5,0.00030136,120]
[380164548,1755589631116,-1365.42,0.00030136,120]
[380164549,1755589631151,-1353.5,0.00030136,120]
[380164550,1755589631186,-1353.5,0.00030136,120]
[380164551,1755589631219,-1353.5,0.00030136,120]
[380164552,1755589631257,-1353.5,0.00030136,120]
[380164553,1755589631292,-1353.5,0.00030136,120]
[380164554,1755589631324,-400.0,0.00030136,120]
[380164555,1755589631358,-1353.70663324,0.00030136,120]
[380164556,1755589631392,-400.0,0.00030136,120]
[380164557,1755589631430,-485.05,0.00030136,120]
[380164558,1755589631463,-400.0,0.00030136,120]
[380164559,1755589631495,-400.0,0.00030136,120]
[380164560,1755589631527,-2608.97,0.00030136,120]
[380164561,1755589631560,-852.7,0.00030136,120]
[380164562,1755589631592,-400.0,0.00030136,120]
[380164563,1755589631628,-400.0,0.00030136,120]
[380164564,1755589631664,-2295.32,0.00030136,120]
[380164565,1755589631700,-400.0,0.00030136,120]
[380164566,1755589631736,-400.0,0.00030136,120]
[380164567,1755589631770,-595.81,0.00030136,120]
[380164568,1755589631802,-400.0,0.00030136,120]
[380164569,1755589631834,-1181.3,0.00030136,120]
[380164570,1755589631865,-400.0,0.00030136,120]
[380164571,1755589631902,-400.0,0.00030136,120]
[380164572,1755589631934,-2621.16,0.00030136,120]
[380164573,1755589631966,-523.36,0.00030136,120]
[380164574,1755589631998,-1919.71,0.00030136,120]
[380164575,1755589632030,-400.0,0.00030136,120]
[380164576,1755589632063,-1121.37,0.00030136,120]
[380164577,1755589632097,-400.0,0.00030136,120]
[380164578,1755589632146,-1674.13,0.00030136,120]
[380164579,1755589632186,-901.73,0.00030136,120]
[380164580,1755589632222,-982.31,0.00030136,120]
[380164581,1755589632256,-400.0,0.00030136,120]
[380164582,1755589632291,-400.0,0.00030136,120]
[380164583,1755589632323,-438.98,0.00030136,120]
[380164584,1755589632356,-874.97,0.00030136,120]
[380164585,1755589632390,-1650.3,0.00030136,120]
[380164586,1755589632425,-400.0,0.00030136,120]
[380164587,1755589632459,-1450.94,0.00030136,120]
[380164588,1755589632494,-400.0,0.00030136,120]
[380164589,1755589632528,-894.43,0.00030136,120]
[380164590,1755589632568,-400.0,0.00030136,120]
[380164591,1755589632603,-878.31,0.00030136,120]
[380164592,1755589632637,-400.0,0.00030136,120]
[380164593,1755589632672,-2793.82,0.00030136,120]
[380164594,1755589632705,-400.0,0.00030136,120]
[380164595,1755589632737,-400.0,0.00030136,120]
[380164596,1755589632769,-2429.83,0.00030136,120]
[380164597,1755589632803,-400.0,0.00030136,120]
[380164598,1755589632836,-2401.78,0.00030136,120]
[380164599,1755589632868,-400.0,0.00030136,120]
[380164600,1755589632900,-400.0,0.00030136,120]
[380164601,1755589632934,-543.98,0.00030136,120]
[380164602,1755589632967,-414.92224181,0.00030136,120]
[380164603,1755589633004,-3284.36,0.00030136,120]
[380164604,1755589633040,-400.0,0.00030136,120]
[380164605,1755589633076,-400.0,0.00030136,120]
[380164606,1755589633113,-2621.95,0.00030136,120]
[380164607,1755589633147,-400.0,0.00030136,120]
[380164608,1755589633180,-400.0,0.00030136,120]
[380164609,1755589633216,-1489.13,0.00030136,120]
[380164610,1755589633249,-1251.64,0.00030136,120]
[380164611,1755589633723,-2219.39,0.00030136,120]
[380164612,1755589633761,-400.0,0.00030136,120]
[380164613,1755589633799,-2907.13,0.00030136,120]
[380164614,1755589633832,-400.0,0.00030136,120]
[380164615,1755589633864,-1493.67,0.00030136,120]
[380164616,1755589633896,-1493.67,0.00030136,120]
[380164617,1755589633928,-400.0,0.00030136,120]
[380164618,1755589633962,-1493.67,0.00030136,120]
[380164619,1755589633995,-1493.67,0.00030136,120]
[380164620,1755589634026,-1493.67,0.00030136,120]
[380164621,1755589634057,-1493.67,0.00030136,120]
[380164622,1755589634089,-1493.67,0.00030136,120]
[380164623,1755589634124,-1493.67,0.00030136,120]
[380164624,1755589634156,-1493.67,0.00030136,120]
[380164625,1755589634188,-1493.67,0.00030136,120]
[380164626,1755589634221,-1228.7,0.00030136,120]
[380164627,1755589634254,-1493.67,0.00030136,120]
[380164628,1755589634287,-1493.67,0.00030136,120]
[380164629,1755589634319,-1493.67,0.00030136,120]
[380164630,1755589634352,-484.8,0.00030136,120]
[380164631,1755589634384,-1493.67,0.00030136,120]
[380164632,1755589634423,-1493.67,0.00030136,120]
[380164633,1755589634465,-1493.67,0.00030136,120]
[380164634,1755589634499,-400.0,0.00030136,120]
[380164635,1755589634533,-1493.67,0.00030136,120]
[380164636,1755589634567,-2282.06,0.00030136,120]
[380164637,1755589634600,-1493.67,0.00030136,120]
[380164638,1755589634633,-1493.67,0.00030136,120]
[380164639,1755589634668,-1493.67,0.00030136,120]
[380164640,1755589634704,-400.0,0.00030136,120]
[380164641,1755589634739,-1493.67,0.00030136,120]
[380164642,1755589634774,-1493.67,0.00030136,120]
[380164643,1755589634809,-1493.67,0.00030136,120]
[380164644,1755589634844,-1493.88305013,0.00030136,120]
[380164645,1755589634879,-3473.94,0.00030136,120]
[380164646,1755589634914,-1662.57,0.00030136,120]
[380164647,1755589634948,-400.0,0.00030136,120]
[380164648,1755589634980,-400.0,0.00030136,120]
[380164649,1755589635013,-1776.33,0.00030136,120]
[380164650,1755589635045,-400.0,0.00030136,120]
[380164651,1755589635078,-2226.68,0.00030136,120]
[380164652,1755589635110,-400.0,0.00030136,120]
[380164653,1755589635143,-1936.08,0.00030136,120]
[380164654,1755589635175,-400.0,0.00030136,120]
[380164655,1755589635206,-400.0,0.00030136,120]
[380164656,1755589635238,-400.0,0.00030136,120]
[380164657,1755589635270,-626.75,0.00030136,120]
[380164658,1755589635302,-400.0,0.00030136,120]
[380164659,1755589635335,-1876.46,0.00030136,120]
[380164660,1755589635367,-3841.39,0.00030136,120]
[380164661,1755589635400,-400.0,0.00030136,120]
[380164662,1755589635433,-400.0,0.00030136,120]
[380164663,1755589635466,-588.03,0.00030136,120]
[380164664,1755589635499,-400.0,0.00030136,120]
[380164665,1755589635533,-400.0,0.00030136,120]
[380164666,1755589635566,-459.45,0.00030136,120]
[380164667,1755589635597,-533.01,0.00030136,120]
[380164668,1755589635630,-1192.06,0.00030136,120]
[380164669,1755589635663,-2215.68,0.00030136,120]
[380164670,1755589635698,-1481.29,0.00030136,120]
[380164671,1755589635730,-400.0,0.00030136,120]
[380164672,1755589635763,-982.05,0.00030136,120]
[380164673,1755589635795,-1014.69,0.00030136,120]
[380164674,1755589635827,-382.55934079,0.00030136,120]
[380164675,1755589635859,-400.0,0.00030136,120]
[380164676,1755589635890,-400.0,0.00030136,120]
[380164677,1755589635921,-400.0,0.00030136,120]
[380164678,1755589635953,-551.86,0.00030136,120]
[380164679,1755589635984,-732.36,0.00030136,120]
[380164680,1755589636017,-400.0,0.00030136,120]
[380164681,1755589636049,-400.0,0.00030136,120]
[380164682,1755589636081,-3191.27,0.00030136,120]
[380164683,1755589636113,-400.0,0.00030136,120]
[380164684,1755589636146,-400.0,0.00030136,120]
[380164685,1755589636178,-1995.59,0.00030136,120]
[380164686,1755589636211,-1475.57,0.00030136,120]
[380164687,1755589636243,-3283.78,0.00030136,120]
[380164688,1755589636276,-1976.68,0.00030136,120]
[380164689,1755589636308,-681.76,0.00030136,120]
[380164690,1755589636342,-3719.01,0.00030136,120]
[380164691,1755589636380,-3642.14,0.00030136,120]
[380164692,1755589636413,-883.87,0.00030136,120]
[380164693,1755589636445,-501.30600578,0.00030136,120]
[380164694,1755589636479,-1240.35,0.00030136,120]
[380164695,1755589636511,-3354.88,0.00030136,120]
[380164696,1755589636544,-563.24,0.00030136,120]
[380164697,1755589636577,-400.0,0.00030136,120]
[380164698,1755589636612,-400.0,0.00030136,120]
[380164699,1755589636646,-1443.09,0.00030136,120]
[380164700,1755589636678,-400.0,0.00030136,120]
[380164701,1755589636711,-3093.2,0.00030136,120]
[380164702,1755589636743,-403.94730596,0.00030136,120]
[380164703,1755589636774,-1480.49,0.00030136,120]
[380164704,1755589636808,-400.0,0.00030136,120]
[380164705,1755589636842,-400.0,0.00030136,120]
[380164706,1755589636886,-400.0,0.00030136,120]
[380164707,1755589636927,-400.0,0.00030136,120]
[380164708,1755589636960,-400.0,0.00030136,120]
[380164709,1755589636992,-521.12,0.00030136,120]
[380164710,1755589637025,-400.0,0.00030136,120]
[380164711,1755589637058,-400.0,0.00030136,120]
[380164712,1755589637089,-618.51,0.00030136,120]
[380164713,1755589637121,-675.58,0.00030136,120]
[380164714,1755589637151,-400.0,0.00030136,120]
[380164715,1755589637184,-2220.24,0.00030136,120]
[380164716,1755589637215,-531.66,0.00030136,120]
[380164717,1755589637246,-400.0,0.00030136,120]
[380164718,1755589637277,-400.0,0.00030136,120]
[380164719,1755589637308,-400.0,0.00030136,120]
[380164720,1755589637339,-400.0,0.00030136,120]
[380164721,1755589637369,-400.0,0.00030136,120]
[380164722,1755589637400,-1378.68,0.00030136,120]
[380164723,1755589637432,-992.89,0.00030136,120]
[380164724,1755589637463,-400.0,0.00030136,120]
[380164725,1755589637494,-1621.75,0.00030136,120]
[380164726,1755589637524,-690.36,0.00030136,120]
[380164727,1755589637862,-2047.72,0.00030136,120]
[380164728,1755589637895,-400.0,0.00030136,120]
[380164729,1755589637927,-400.0,0.00030136,120]
[380164730,1755589637959,-847.71,0.00030136,120]
[380164731,1755589637989,-400.0,0.00030136,120]
[380164732,1755589638019,-2056.7,0.00030136,120]
[380164733,1755589638049,-400.0,0.00030136,120]
[380164734,1755589638077,-400.0,0.00030136,120]
[380164735,1755589638110,-2262.36,0.00030136,120]
[380164736,1755589638140,-528.77,0.00030136,120]
[380164737,1755589638171,-955.63,0.00030136,120]
[380164738,1755589638203,-3339.94,0.00030136,120]
[380164739,1755589638234,-463.69,0.00030136,120]
[380164740,1755589638263,-400.0,0.00030136,120]
[380164741,1755589638292,-400.0,0.00030136,120]
[380164742,1755589638322,-1353.13,0.00030136,120]
[380164743,1755589638352,-400.0,0.00030136,120]
[380164744,1755589638382,-456.22,0.00030136,120]
[380164745,1755589638413,-400.0,0.00030136,120]
[380164746,1755589638443,-962.9,0.00030136,120]
[380164747,1755589638475,-1813.71,0.00030136,120]
[380164748,1755589638506,-168.78380737,0.00030136,120]
[380164749,1755589638537,-400.0,0.00030136,120]
[380164750,1755589638568,-2122.64,0.00030136,120]
[380164751,1755589638599,-2042.45,0.00030136,120]
[380164752,1755589638631,-1198.74,0.00030136,120]
[380164753,1755589638663,-400.0,0.00030136,120]
[380164754,1755589638693,-1226.46,0.00030136,120]
[380164755,1755589638723,-2318.53,0.00030136,120]
[380164756,1755589638752,-598.21,0.00030136,120]
[380164757,1755589638780,-400.0,0.00030136,120]
[380164758,1755589638809,-895.93,0.00030136,120]
[380164759,1755589638837,-500.0,0.00030136,120]
[380164760,1755589638866,-803.76,0.00030136,120]
[380164761,1755589638895,-500.0,0.00030136,120]
[380164762,1755589638925,-3394.52,0.00030136,120]
[380164763,1755589638955,-1078.97,0.00030136,120]
[380164764,1755589638983,-500.0,0.00030136,120]
[380164765,1755589639014,-1078.97,0.00030136,120]
[380164766,1755589639044,-500.0,0.00030136,120]
[380164767,1755589639075,-400.0,0.00030136,120]
[380164768,1755589639108,-1078.97,0.00030136,120]
[380164769,1755589639139,-500.0,0.00030136,120]
[380164770,1755589639170,-650.79,0.00030136,120]
[380164771,1755589639202,-1078.97,0.00030136,120]
[380164772,1755589639232,-500.0,0.00030136,120]
[380164773,1755589639263,-1078.97,0.00030136,120]
[380164774,1755589639294,-429.43,0.00030136,120]
[380164775,1755589639324,-500.0,0.00030136,120]
[380164776,1755589639355,-1078.97,0.00030136,120]
[380164777,1755589639388,-500.0,0.00030136,120]
[380164778,1755589639420,-1078.97,0.00030136,120]
[380164779,1755589639452,-500.0,0.00030136,120]
[380164780,1755589639484,-1078.97,0.00030136,120]
[380164781,1755589639514,-500.0,0.00030136,120]
[380164782,1755589639543,-1078.97,0.00030136,120]
[380164783,1755589639572,-500.0,0.00030136,120]
[380164784,1755589639602,-1078.97,0.00030136,120]
[380164785,1755589639632,-500.0,0.00030136,120]
[380164786,1755589639662,-400.0,0.00030136,120]
[380164787,1755589639693,-1078.97,0.00030136,120]
[380164788,1755589639723,-400.0,0.00030136,120]
[380164789,1755589639753,-500.0,0.00030136,120]
[380164790,1755589639783,-1078.97,0.00030136,120]
[380164791,1755589639813,-1207.05,0.00030136,120]
[380164792,1755589639843,-500.0,0.00030136,120]
[380164793,1755589639872,-1078.97,0.00030136,120]
[380164794,1755589639903,-666.62,0.00030136,120]
[380164795,1755589639934,-4740.5,0.00030136,120]
[380164796,1755589639965,-500.0,0.00030136,120]
[380164797,1755589639996,-1078.97,0.00030136,120]
[380164798,1755589640026,-400.0,0.00030136,120]
[380164799,1755589640057,-511.55488809,0.00030136,120]
[380164800,1755589640087,-1078.97,0.00030136,120]
[380164801,1755589640117,-400.0,0.00030136,120]
[380164802,1755589640148,-1078.97,0.00030136,120]
[380164803,1755589640179,-2280.1,0.00030136,120]
[380164804,1755589640210,-1078.97,0.00030136,120]
[380164805,1755589640240,-1078.97,0.00030136,120]
[380164806,1755589640269,-1078.97,0.00030136,120]
[380164807,1755589640300,-1078.97,0.00030136,120]
[380164808,1755589640330,-1078.97,0.00030136,120]
[380164809,1755589640362,-1078.97,0.00030136,120]
[380164810,1755589640392,-1078.97,0.00030136,120]
[380164811,1755589640422,-1079.14620782,0.00030136,120]
[380164812,1755589640454,-400.0,0.00030136,120]
[380164813,1755589640486,-400.0,0.00030136,120]
[380164814,1755589640516,-1148.63,0.00030136,120]
[380164815,1755589640546,-400.0,0.00030136,120]
[380164816,1755589640578,-2678.74,0.00030136,120]
[380164817,1755589640608,-2390.34,0.00030136,120]
[380164818,1755589640641,-1125.99,0.00030136,120]
[380164819,1755589640670,-589.95,0.00030136,120]
[380164820,1755589640700,-400.0,0.00030136,120]
[380164821,1755589640730,-400.0,0.00030136,120]
[380164822,1755589640761,-1486.26,0.00030136,120]
[380164823,1755589640791,-2901.36,0.00030136,120]
[380164824,1755589640821,-2400.65,0.00030136,120]
[380164825,1755589640851,-713.85,0.00030136,120]
[380164826,1755589640880,-2596.73,0.00030136,120]
[380164827,1755589640910,-1480.3,0.00030136,120]
[380164828,1755589640940,-400.0,0.00030136,120]
[380164829,1755589640970,-400.0,0.00030136,120]
[380164830,1755589641000,-400.0,0.00030136,120]
[380164831,1755589641031,-1445.68,0.00030136,120]
[380164832,1755589641063,-2515.67,0.00030136,120]
[380164833,1755589641092,-682.13,0.00030136,120]
[380164834,1755589641124,-400.0,0.00030136,120]
[380164835,1755589641156,-1599.37,0.00030136,120]
[380164836,1755589641185,-416.84,0.00030136,120]
[380164837,1755589641214,-498.78,0.00030136,120]
[380164838,1755589641244,-400.0,0.00030136,120]
[380164839,1755589641274,-1099.74,0.00030136,120]
[380164840,1755589641304,-400.0,0.00030136,120]
[380164841,1755589641333,-400.0,0.00030136,120]
[380164842,1755589641362,-400.0,0.00030136,120]
[380164843,1755589641676,-3772.41,0.00030136,120]
[380164844,1755589641708,-1331.86,0.00030136,120]
[380164845,1755589641739,-1331.86,0.00030136,120]
[380164846,1755589641772,-1331.86,0.00030136,120]
[380164847,1755589641803,-2453.25,0.00030136,120]
[380164848,1755589641835,-1331.86,0.00030136,120]
[380164849,1755589641865,-1331.86,0.00030136,120]
[380164850,1755589641896,-1331.86,0.00030136,120]
[380164851,1755589641926,-400.0,0.00030136,120]
[380164852,1755589641960,-1331.86,0.00030136,120]
[380164853,1755589641990,-1331.86,0.00030136,120]
[380164854,1755589642022,-1331.86,0.00030136,120]
[380164855,1755589642053,-976.98,0.00030136,120]
[380164856,1755589642085,-1331.86,0.00030136,120]
[380164857,1755589642116,-400.0,0.00030136,120]
[380164858,1755589642147,-1331.86,0.00030136,120]
[380164859,1755589642179,-1331.86,0.00030136,120]
[380164860,1755589642212,-1331.86,0.00030136,120]
[380164861,1755589642242,-1810.85,0.00030136,120]
[380164862,1755589642271,-1331.86,0.00030136,120]
[380164863,1755589642300,-2245.81,0.00030136,120]
[380164864,1755589642331,-1331.86,0.00030136,120]
[380164865,1755589642364,-1331.86,0.00030136,120]
[380164866,1755589642396,-1331.86,0.00030136,120]
[380164867,1755589642428,-1331.86,0.00030136,120]
[380164868,1755589642460,-1331.86,0.00030136,120]
[380164869,1755589642492,-1331.86,0.00030136,120]
[380164870,1755589642524,-400.0,0.00030136,120]
[380164871,1755589642556,-1331.86,0.00030136,120]
[380164872,1755589642589,-1331.86,0.00030136,120]
[380164873,1755589642623,-1331.86,0.00030136,120]
[380164874,1755589642654,-1332.01412925,0.00030136,120]
[380164875,1755589642685,-400.0,0.00030136,120]
[380164876,1755589642718,-742.47,0.00030136,120]
[380164877,1755589642748,-2539.62,0.00030136,120]
[380164878,1755589642779,-2195.61,0.00030136,120]
[380164879,1755589642808,-714.18,0.00030136,120]
[380164880,1755589642839,-400.0,0.00030136,120]
[380164881,1755589642870,-2680.73,0.00030136,120]
[380164882,1755589642902,-991.88,0.00030136,120]
[380164883,1755589642934,-400.0,0.00030136,120]
[380164884,1755589642965,-745.45,0.00030136,120]
[380164885,1755589642996,-542.0,0.00030136,120]
[380164886,1755589643027,-542.0,0.00030136,120]
[380164887,1755589643060,-542.0,0.00030136,120]
[380164888,1755589643091,-542.0,0.00030136,120]
[380164889,1755589643126,-542.0,0.00030136,120]
[380164890,1755589643158,-542.0,0.00030136,120]
[380164891,1755589643190,-609.04,0.00030136,120]
[380164892,1755589643222,-542.0,0.00030136,120]
[380164893,1755589643254,-542.0,0.00030136,120]
[380164894,1755589643286,-400.0,0.00030136,120]
[380164895,1755589643322,-542.0,0.00030136,120]
[380164896,1755589643354,-400.0,0.00030136,120]
[380164897,1755589643386,-2185.81,0.00030136,120]
[380164898,1755589643421,-542.0,0.00030136,120]
[380164899,1755589643456,-542.0,0.00030136,120]
[380164900,1755589643490,-542.0,0.00030136,120]
[380164901,1755589643521,-542.0,0.00030136,120]
[380164902,1755589643553,-542.0,0.00030136,120]
[380164903,1755589643585,-542.0,0.00030136,120]
[380164904,1755589643617,-400.0,0.00030136,120]
[380164905,1755589643649,-2630.81,0.00030136,120]
[380164906,1755589643683,-542.0,0.00030136,120]
[380164907,1755589643715,-542.0,0.00030136,120]
[380164908,1755589643747,-2260.13,0.00030136,120]
[380164909,1755589643776,-542.0,0.00030136,120]
[380164910,1755589643809,-542.0,0.00030136,120]
[380164911,1755589643842,-542.0,0.00030136,120]
[380164912,1755589643873,-542.0,0.00030136,120]
[380164913,1755589643904,-542.0,0.00030136,120]
[380164914,1755589643934,-542.0,0.00030136,120]
[380164915,1755589643965,-542.10490401,0.00030136,120]
[380164916,1755589643994,-729.05,0.00030136,120]
[380164917,1755589644023,-3446.49,0.00030136,120]
[380164918,1755589644053,-1461.45,0.00030136,120]
[380164919,1755589644083,-400.0,0.00030136,120]
[380164920,1755589644114,-1018.64,0.00030136,120]
[380164921,1755589644146,-2669.46,0.00030136,120]
[380164922,1755589644176,-936.95,0.00030136,120]
[380164923,1755589644209,-1452.42,0.00030136,120]
[380164924,1755589644240,-400.0,0.00030136,120]
[380164925,1755589644271,-2087.66,0.00030136,120]
[380164926,1755589644303,-754.47,0.00030136,120]
[380164927,1755589644335,-1421.06,0.00030136,120]
[380164928,1755589644367,-1293.39,0.00030136,120]
[380164929,1755589644399,-400.0,0.00030136,120]
[380164930,1755589644432,-400.0,0.00030136,120]
[380164931,1755589644466,-400.0,0.00030136,120]
[380164932,1755589644499,-789.07,0.00030136,120]